{"text_format":"1","workbook":"xlsx","n_sheets":6,"sheets":["Werkelijke kosten","Vragen-Spelregels","Blad1","Functies","Medewerkers","De vraagtekens"],"not_rendered":{"charts":0,"images":1,"macros":1,"external_links":0,"defined_names":1,"comments":0,"pivot_tables":0},"unopened":[],"bounds":{"document_bytes":16777216,"sheet_cells":100000,"rows_first":2000,"rows_last":500,"rows_between":2000,"halvings":0,"cell_chars":16384,"cell_head_chars":4096},"cells_cut":0,"cells_raw":0,"read":"whole","date_system":"1900"}

{"sheet":"Werkelijke kosten","index":0,"n_rows":33,"n_cols":16,"rows_kept":33,"cut":false,"hidden":false,"merged":[[1,1,1,6],[2,1,2,3],[3,4,3,6],[4,1,4,3],[4,4,4,6],[6,1,6,7],[7,1,7,3],[7,4,7,6],[7,10,7,14],[8,1,8,3],[8,4,8,6],[8,10,8,14],[9,1,9,3],[9,4,9,6],[9,10,9,14],[11,10,11,14],[13,1,15,1],[13,2,15,2],[13,3,15,3],[13,5,15,5],[13,6,15,6],[10,10,10,14],[13,14,15,14],[26,10,26,13],[20,10,20,13],[21,10,21,13],[13,7,15,7],[13,9,15,9],[13,10,15,13],[16,10,16,13],[17,10,17,13],[18,10,18,13],[19,10,19,13],[22,10,22,13],[23,10,23,13],[24,10,24,13],[25,10,25,13]]}
[null,"Declaratieformulier vrijwilligersvergoeding op basis van Werkelijke kosten 2025"]
[null,"Persoonljke gegevens ",null,null,null,null,null,null,null,"Vragen & Spelregels ",null,null,"(klik hier)"]
[null,"Naam",null,null,null,null,null,null,null,"- Ga met uw cursor naar het vraagteken voor een toelichting."]
[null,"Adres, Postcode en Woonplaats",null,null,null,null,null,null,null,"- Vraag uw contactpersoon over de planning van uw inzet"]
[null,"Ingezet door: (afdeling KNHS)",null,null,null,null,null,"?",null,"- Overige vragen",null,"vrijwilliger@knhs.nl"]
[]
[null,"Timing en soort inzet (selecteren)",null,null,null,null,null,null,null,"Uw gegevens "]
[null,"Jaar",null,null,2025,null,null,"?",null,"IBAN",null,null,null,null,null,"?"]
[null,"Maand",null,null,null,null,null,"?",null,"KNHS ID",null,null,null,null,null,"?"]
[null,null,null,null,null,null,null,null,null,"Geb.datum"]
[null,null,null,null,null,null,null,null,null,"Telefoonnr."]
[null,{"$f":"IF(I17>0,\"FOUT: Een van de gekozen functies's (zie *) kan niet worden uitgevoerd in de gekozen vergoedingscategorie\",\"\")","v":""},null,null,{"$f":"IF(E10=\"\",\"\",IF(E10=\"Nee\",\"maximaal 2,50 per uur\", \"maximaal 4,50 per uur\"))","v":""},null,null,null,null,"Mailadres"]
[null,"(geel = keuze menu)"]
[null," Volg nr:","Datum,","Vrijwilligers functie",null,"Activiteit/Evenement","Plaatsvan de Activiteit","Gereden kilometers",null,"Gemaakte kosten (incl BTW)","Omschrijving",null,null,null,"Totaal bedrag"]
[]
[]
[null,null,"?","?",null,"?","?","?",null,"?","?",null,null,null,"?"]
[null,1,null,null,null,null,null,null,null,null,null,null,null,null,{"$f":"(H18*0.3)+J18","v":0}]
[null,2,null,null,null,null,null,null,null,null,null,null,null,null,0]
[null,3,null,null,null,null,null,null,null,null,null,null,null,null,0]
[null,4,null,null,null,null,null,null,null,null,null,null,null,null,0]
[null,5,null,null,null,null,null,null,null,null,null,null,null,null,0]
[null,6,null,null,null,null,null,null,null,null,null,null,null,null,0]
[null,7,null,null,null,null,null,null,null,null,null,null,null,null,0]
[null,8,null,null,null,null,null,null,null,null,null,null,null,null,0]
[null,9,null,null,null,null,null,null,null,null,null,null,null,null,0]
[null,10,null,null,null,null,null,null,null,null,null,null,null,null,0]
[null,null,null,null,null,null,null,{"$f":"SUM(H18:H27)","v":0},null,"Te betalen bedrag ",null,null,null,null,{"$f":"SUM(O18:O27)","v":0}]
[]
[null,"Paraaf vrijwilliger (indien niet digitaal verstuurd)",null,null,"Paraaf KNHS manager",null,"Paraaf KNHS medewerker",null,null,"Indienen:"]
[null,null,null,null,null,null,null,null,null,"In PDF mailen naar:","vrijwilliger@knhs.nl"]
[null,null,null,null,null,null,null,null,null,"Per post:","KNHS, Afd. FA, Postbus 3040, 3850 CA Ermelo"]
[null,{"$f":"IF(E3=\"\",\"\",E3)","v":""},null,null,{"$f":"IF(G33=\"\",\"\",VLOOKUP(E5,Medewerkers!A:E,5,FALSE))","v":""},null,{"$f":"IF(E5=\"\",\"\",E5)","v":""}]

{"sheet":"Vragen-Spelregels","index":1,"n_rows":27,"n_cols":2,"rows_kept":27,"cut":false,"hidden":false,"merged":[[36,1,37,1],[10,1,11,1],[26,1,27,1]]}
[null,"Spelregels - Algemeen"]
[null,"Vergoedingen aan vrijwilligers zijn aan fiscale regels gebonden. Informatie hierover kunt u vinden op de site "]
[null,"de van de Belastingdienst:  www.belastingdienst.nl, zoeken op: vrijwilligersvergoeding."]
[]
[null,"De KNHS houdt u ook graag op de hoogte van alle inzet gerelateerde ontwikkelingen"]
[null,"Kijk hiervoor op:  www.knhs.nl/vrijwilligersvergoeding."]
[]
[null,"- Wij ontvangen graag 1 declaratieformulier per maand, het liefst in de eerste week nadat de maand is afgelopen"]
[null,"- Bij voorkeur ontvangen wij uw declaratie digitaal per mail "]
[null,"- Kijk altijd even op de KNHS site voor de laatste versie van dit declaratie formulier"]
[null,"- Gebruik het declaratieformulier dat voor u van toepassing is: OF het declaratieformulier voor Uurvergoedingen OF Werkelijke kosten. "]
[]
[]
[null,"Declaraties die niet voldoen aan de gestelde voorwaarden van de KNHS en/of Belastingdienst."]
[null,"kunnen helaas niet worden uitbetaald."]
[]
[null,"Spelregels - Dagvergoedingen"]
[null,"U heeft eenmaal per kalenderjaar de keuzevrijheid om te kiezen voor het declareren van uurvergoedingen of voor werkelijke kosten. Indien u eenmaal een declaratie heeft ingediend met daarop een dagdeelvergoeding, kunt u niet meer overstappen op de methode van werkelijke kosten. Dit kan pas in het jaar daarop volgend."]
[]
[null,"Voor vrijwilligers geldt dat zij de werkzaamheden niet beroepsmatig verrichten. Indien u ervoor kiest om een uurvergoeding te declareren, geldt hiervoor de fiscale vrijwilligersregeling, namelijk € 5,60 per uur (€ 3,30 als u jonger bent dan 22 jaar) met een maximum van € 210,=  per maand en nooit hoger dan € 2.100,=  per jaar. Deze bedragen zijn het totaal van alle dagdeelvergoedingen, gedeclareerde kilometers (€ 0,30) bij elkaar. "]
[]
[null,"Spelregels - Werkelijkekosten"]
[null,"U heeft eenmaal per kalenderjaar de keuzevrijheid om te kiezen voor het declareren van dagdeelvergoedingen of voor werkelijke kosten. Indien u eenmaal een declaratie heeft ingediend met daarop een dagdeelvergoeding, kunt u niet meer overstappen op de methode van werkelijke kosten. Dit kan pas in het jaar daarop volgend. "]
[]
[null,"Voor vrijwilligers geldt dat zij de werkzaamheden niet beroepsmatig verrichten. U declareert uitsluitend de werkelijke kosten. Dit zijn kosten zoals kilometervergoeding, overnachtingskosten, verblijfskosten, etc.. Het uitsluitend declareren van de onkosten fiscaal ongelimiteerd indien deze kosten met bonnen verantwoord kunnen worden. Kosten > € 25,= dienen vooraf met de KNHS te worden afgestemd. Zonder bonnen kan de declaratie niet worden uitbetaald."]
[]
[null,"U kunt het declaratieformulier voor Werkelijke kosten niet gebruiken voor het indienen van uurvergoedingen."]

{"sheet":"Blad1","index":2,"n_rows":31,"n_cols":1,"rows_kept":31,"cut":false,"hidden":true,"merged":[]}
[1]
[2]
[3]
[4]
[5]
[6]
[7]
[8]
[9]
[10]
[11]
[12]
[13]
[14]
[15]
[16]
[17]
[18]
[19]
[20]
[21]
[22]
[23]
[24]
[25]
[26]
[27]
[28]
[29]
[30]
[31]

{"sheet":"Functies","index":3,"n_rows":28,"n_cols":19,"rows_kept":28,"cut":false,"hidden":true,"merged":[]}
[null,null,"Dagdeel"]
[null,"Federatievertegenwoordiger ",1,"Commissie van beroep",null,null,null,1,"Vergoeding werkelijke kosten",1,"A","Jonger dan 22 jaar =  € 2,75 per uur",null,null,null,null,null,null,2.5]
[null,"Jurylid",1,"Couponrunner",null,null,null,2,"Vrijwilligersvergoeding (max. 190 per maand / 1.900 per jaar)",2,"B","Ouder dan 22 jaar =  € 5,00 per uur ",null,null,null,null,null,null,4.5]
[null,"Technisch afgevaardigde ",1,"Classifier",null,null,null,null,null,null,"C","Dagdeelvergoeding van 4 uur = € 20,-",null,null,null,null,null,null,20]
[null,"I&R-controleur",1,"Enjoy the Ride rit begeleider",null,null,null,null,null,null,null,"Kilometervergoeding auto van € 0,28",null,null,null,null,null,null,0.28000000000000003]
[null,"Ponymeter",1,"Federatievertegenwoordiger"]
[null,null,null,"Hinderniswaarnemer"]
[null,null,null,"I&R-controleur"]
[null,null,null,"Jurylid"]
[null,null,null,"Junior Bestuurslid"]
[null,null,null,"Ledenraadsleden"]
[null,null,null,"Lid disciplinecommissie"]
[null,null,null,"Lid Forum"]
[null,null,null,"Parcourhulpen"]
[null,null,null,"Parcoursbouwer "]
[null,null,null,"Prijzenbeheer"]
[null,null,null,"Raad van appel"]
[null,null,null,"Regioconsulent"]
[null,null,null,"Rekenkamer"]
[null,null,null,"Ringmeester"]
[null,null,null,"Schrijvers"]
[null,null,null,"Secretariaat"]
[null,null,null,"Technisch afgevaardigde"]
[null,null,null,"Tuchtcollege lid"]
[null,null,null,"Voorrijden instructeurscursus"]
[null,null,null,"Voorrijden instructeurscursus topsport"]
[null,null,null,"Wedstrijdplatform"]
[null,null,null,"WPA"]

{"sheet":"Medewerkers","index":4,"n_rows":9,"n_cols":7,"rows_kept":9,"cut":false,"hidden":true,"merged":[]}
[null,"sleutel"]
["Sportontwikkeling",{"$f":"C2&\" - \"&G2","v":"Arjan Coppoolse - Sportontwikkeling"},"Arjan Coppoolse",null,"Vrijwilligercoordinator",null,"Sportontwikkeling"]
["Recreatiesport",{"$f":"C3&\" - \"&G3","v":"Ellis Feenstra - Recreatiesport"},"Ellis Feenstra",null,"Vrijwilligercoordinator",null,"Recreatiesport"]
["Evenementen","Kelly Jefferson - Evenementen","Kelly Jefferson",null,"Vrijwilligercoordinator",null,"Evenementen"]
["Handhaving/Wedstrijden","Kirsti Berenschot - Handhaving/Wedstrijden","Kirsti Berenschot",null,"Vrijwilligercoordinator",null,"Handhaving/Wedstrijden"]
["Opleidingen","Marina Gotink - Opleidingen","Marina Gotink",null,"Vrijwilligercoordinator",null,"Opleidingen"]
["Topsport","Monique van der Heijden - Topsport","Monique van der Heijden",null,"Vrijwilligercoordinator",null,"Topsport"]
["Accommodaties","Wilma Plaisier - Accommodaties","Wilma Plaisier",null,"Vrijwilligercoordinator",null,"Accommodaties"]
["Overige","Overige","Overige",null,"Vrijwilligercoordinator",null,"Overige"]

{"sheet":"De vraagtekens","index":5,"n_rows":37,"n_cols":2,"rows_kept":37,"cut":false,"hidden":true,"merged":[[35,1,36,1],[19,1,20,1],[32,1,33,1],[2,1,3,1],[5,1,6,1],[8,1,10,1],[11,1,12,1],[16,1,17,1]]}
["Vraagtekens in het declaratieformulier voor het declareren van werkelijkekosten."]
[]
["H5","Met welke medewerker van de KNHS heeft u contact gehad en afspraken gemaakt over uw inzet? Als u in het invulgedeelte gaat staan met uw cursor, dan ziet u aan de rechterkant een pijltje. Indien u daarop klikt ziet u een overzicht met daarop de medewerkers van de KNHS. Kiest u de persoon waarmee u afspraken heeft gemaakt."]
["is B3"]
[]
["H8","Voor welk jaar vult u uw declaratieformulier in? Als u in het invulgedeelte gaat staan met uw cursor, dan ziet u aan de rechterkant een pijltje. Indien u daarop klikt ziet u een overzicht met daarin jaartallen. Kiest u het jaartal waarvoor u uw declaratie invult."]
["Is B6"]
[]
["H9","In welke maand bent u ingezet als vrijwilliger? Als u in het invulgedeelte gaat staan met uw cursor, dan ziet u aan de rechterkant een pijltje. Indien u daarop klikt ziet u een overzicht met daarin de maanden. Kiest u de maand waarvoor u uw declaratie invult. Het is niet mogelijk om declaraties van verschillende maanden op hetzelfde formulier in te vullen."]
["is B9"]
[]
["P8","Vult u hier uw IBAN-nummer in. Op dit nummer krijgt u uw vergoeding overgemaakt. Uw IBAN-nr. begint met de landcode, gevolgd door het controlegetal, dan de bankcode tot slot aangevuld met uw rekeningnummer (eventueel aangevuld met een of meerdere nullen. Voorbeeld: NL99BANK0123456789"]
["is B16"]
[]
["P9","Vult u hier uw KNHS-relatienummer in. Bent u geen lid van de KNHS, dan kunt u deze leeglaten."]
["is B19"]
["C16","Op welke datum bent u als vrijwilliger in gezet. Vult u voor bijvoorbeeld 25 maart 2014, alleen 25 in. Als u in het invulgedeelte gaat staan met uw cursor, dan ziet u aan de rechterkant een pijltje. Indien u daarop klikt, kunt u de dag kiezen waarop u bent ingezet."]
["is B21"]
[]
["D16","In welke vrijwilligersfunctie bent u werkzaam geweest, op deze dag? Als u in het invulgedeelte gaat staan met uw cursor, dan ziet u aan de rechterkant een pijltje. Indien u daarop klikt, kunt u de functie kiezen waarvoor u bent ingezet."]
["Is B24"]
[]
["F16","Vult u hierin op welke activiteit of evenement u actief bent geweest. Bijvoorbeeld Indoor Kampioenschappen, of rondje instructie."]
["Is B27"]
["G16","Vult u hierin in welke plaats u geweest bent voor uw vrijwilligersfunctie. Bijvoorbeeld Ermelo."]
["is B29"]
["J16","Vult u hierin de gereden kilometers in. De afstand berekent u met google maps"]
["Is B34"]
["J16","Heeft u in redelijkheid gemaakte kosten die bij de uitvoeren van de vrijwilligersfunctie noodzakelijk zijn, en kunt u deze aantonen met bonnen? Vult u dan hier het bedrag in incl BTW."]
[]
["K-N16","Geeft u hier een omschrijving van de kosten weer. "]
[]
["N16","Indien u de declaratie digitaal invoert, wordt dit veld automatisch gevuld. Dit is het aantal kilometers wat u hebt ingevuld maal € 0,30. Vult u handmatig de declaratie in, dan vult u hier de kilometervergoeding in. Dit berekent u door het aantal kilometers te vermenigvuldigen met 0,30."]
["Is B46"]
[]
["O16","Indien u de declaratie digitaal invoert, wordt dit veld automatisch gevuld. Dit is het totaal bedrag van gereden kilometers plus eventuele onkosten. Dit is het totaal bedrag voor deze dag.  Vult u handmatig de declaratie in, dan vult u hier het totaal bedrag in, van de kilometervergoeding, plus eventuele onkosten."]
["Is B49"]